bitfinex/quotes_ETHUSD_20240709
["timestamp","ask_amount","ask_price","bid_price","bid_amount"]
[1720568004060,3.53965445,3069.7,3069.1,2.4889]
[1720568004243,0.53965445,3069.6,3069.1,2.4889]
[1720568004433,3.0,3069.7,3069.1,2.4889]
[1720568004629,0.53959946,3069.6,3069.1,2.4889]
[1720568004886,3.64143,3069.7,3069.1,2.4889]
[1720568005161,0.5395896,3069.6,3069.1,2.4889]
[1720568005319,0.53956545,3069.6,3069.1,2.4889]
[1720568005518,0.53956545,3069.6,3068.8,3.378]
[1720568005724,2.36509403,3069.6,3068.8,2.312]
[1720568005943,0.53956448,3069.5,3068.8,2.312]
[1720568006166,0.53956448,3069.6,3068.8,3.378]
[1720568006317,0.53956448,3069.6,3068.8,3.7158]
[1720568008248,0.53953274,3069.6,3068.8,3.7158]
[1720568009665,0.53953274,3069.6,3069.1,1.066]
[1720568009876,4.23168711,3070.2,3069.2,2.4175]
[1720568010029,0.96266274,3070.1,3069.2,2.4175]
[1720568010231,0.53949403,3070.1,3069.2,2.4175]
[1720568010547,0.53949403,3070.2,3069.5,1.066]
[1720568010883,0.53949403,3070.2,3069.6,0.34835]
[1720568011053,3.0,3070.4,3069.5,1.066]
[1720568011054,0.53949403,3070.3,3069.5,1.066]
[1720568011643,0.53945469,3070.3,3069.5,1.066]
[1720568012046,2.96145469,3070.3,3069.4,2.4175]
[1720568012250,4.60545469,3070.2,3069.4,2.4175]
[1720568012487,0.53945469,3070.1,3069.4,2.4175]
[1720568012652,4.60545469,3070.2,3069.4,2.4175]
[1720568012863,0.88825469,3070.1,3069.4,2.4175]
[1720568013085,0.53945469,3070.1,3069.4,2.4175]
[1720568013604,0.53945469,3070.3,3069.4,2.4175]
[1720568013779,0.55,3070.2,3069.4,2.4175]
[1720568014159,1.616,3070.2,3069.4,2.4175]
[1720568014399,0.53945469,3070.1,3069.4,2.76585]
[1720568014699,1.60545469,3070.4,3069.4,2.76585]
[1720568014904,0.53945469,3070.3,3069.4,2.76585]
[1720568015088,0.53945469,3070.3,3069.5,0.383185]
[1720568015089,0.53939391,3070.3,3069.5,0.383185]
[1720568015407,1.12278173,3070.4,3069.5,0.383185]
[1720568016306,1.066,3070.4,3069.6,2.2946]
[1720568016601,0.53935381,3070.4,3069.6,2.2946]
[1720568016822,1.60535381,3070.6,3069.8,2.2946]
[1720568018430,0.53933302,3070.5,3069.8,2.2946]
[1720568018585,1.60533595,3070.6,3069.8,2.2946]
[1720568018918,0.53933595,3070.5,3069.9,0.22946]
[1720568019982,1.066,3070.6,3069.9,0.22946]
[1720568020403,0.53933595,3070.6,3070.0,2.2946]
[1720568020632,0.53933595,3070.7,3070.0,2.2946]
[1720568020945,0.53933595,3070.7,3070.0,2.547006]
[1720568021087,1.28240846,3071.0,3070.2,2.2946]
[1720568021088,0.53933595,3070.9,3070.2,2.2946]
[1720568021283,1.60533595,3071.2,3070.3,0.34257379]
[1720568021487,1.60533595,3071.2,3070.4,2.2946]
[1720568021488,0.53933595,3071.2,3070.4,2.2946]
[1720568021715,1.066,3071.4,3070.4,2.2946]
[1720568021716,0.53933595,3071.3,3070.4,2.2946]
[1720568021880,0.70547547,3071.3,3070.4,2.2946]
[1720568023778,0.53926526,3071.3,3070.4,2.2946]
[1720568024109,1.066,3071.4,3070.4,2.2946]
[1720568025022,1.066,3070.7,3070.1,2.3107]
[1720568026836,0.53930688,3071.1,3070.2,0.23107]
[1720568027134,0.53930688,3071.1,3070.3,2.3107]
[1720568027632,1.60530688,3071.2,3070.3,2.3107]
[1720568028712,3.0,3071.3,3070.3,2.3107]
[1720568028926,0.53925813,3071.2,3070.5,2.3392]
[1720568029808,0.53925813,3071.3,3070.5,2.3392]
[1720568030218,0.53899038,3071.3,3070.5,2.3392]
[1720568030514,0.53899038,3071.3,3070.7,2.3392]
[1720568030915,3.53899038,3071.3,3070.7,2.3392]
[1720568031118,3.0,3071.3,3070.7,2.3392]
[1720568031631,3.0567647,3071.9,3070.7,2.3392]
[1720568031869,0.53892931,3071.8,3070.7,2.3392]
[1720568032000,0.53892931,3071.8,3070.8,0.23392]
[1720568032201,0.0567647,3071.9,3070.8,0.23392]
[1720568032946,0.0567647,3071.9,3070.9,2.3392]
[1720568033348,0.53892931,3072.4,3071.1,2.3392]
[1720568033546,1.00455019,3072.3,3071.1,2.3392]
[1720568033755,0.45455019,3072.3,3071.1,2.3392]
[1720568033923,0.05675726,3072.3,3071.1,2.3392]
[1720568035161,0.55,3072.2,3071.1,2.3392]
[1720568037054,0.05675726,3072.3,3071.1,2.3392]
[1720568037674,0.16313296,3072.5,3071.1,2.3392]
[1720568037977,0.55,3072.4,3071.2,2.70812]
[1720568038188,0.55,3072.7,3071.2,2.70812]
[1720568038778,1.08845339,3072.7,3071.2,2.70812]
[1720568038936,1.08845339,3072.7,3070.9,0.06510979]
[1720568038937,1.08816353,3072.7,3071.4,2.4776]
[1720568040381,0.55,3072.7,3071.4,2.4776]
[1720568040666,0.21581111,3073.0,3071.4,2.4776]
[1720568040875,0.21581111,3073.0,3071.0,3.25625]
[1720568040876,3.97685996,3073.3,3071.6,2.4776]
[1720568041182,0.59460205,3073.2,3071.6,2.4776]
[1720568041336,0.3268,3073.1,3071.6,2.4776]
[1720568041928,0.86465481,3073.1,3071.6,2.4776]
[1720568042130,0.55,3073.0,3071.6,2.4776]
[1720568042430,1.32393969,3073.0,3071.8,2.2512]
[1720568042657,3.64963969,3073.0,3071.8,2.2512]
[1720568042843,3.0,3072.9,3071.8,2.2512]
[1720568043142,0.55,3072.8,3071.8,2.2512]
[1720568044376,5.0173,3072.6,3071.6,2.2674]
[1720568044574,3.55,3072.5,3071.6,2.2674]
[1720568046050,6.989,3072.5,3070.9,2.2959]
[1720568046268,0.85673,3072.4,3071.0,0.300874]
[1720568046670,0.85673,3072.4,3071.1,2.4061]
[1720568046671,0.55,3072.3,3071.1,2.4061]
[1720568049342,3.0,3072.5,3071.1,2.4061]
[1720568049576,3.3268,3073.3,3071.1,2.4061]
[1720568049577,5.3511,3072.9,3071.1,2.4061]
[1720568049880,1.76636035,3072.8,3071.3,2.3977]
[1720568051655,0.55,3072.8,3071.3,2.3977]
[1720568052089,0.55,3072.9,3071.3,2.3977]
[1720568052597,0.3268,3073.0,3071.3,2.3977]
[1720568052750,0.55,3072.9,3071.3,2.3977]
[1720568052952,0.55,3072.9,3071.5,2.4388]
[1720568053644,0.8768,3073.0,3071.5,2.4388]
[1720568054589,0.3268,3072.9,3071.5,2.4388]
[1720568054800,0.55,3072.8,3071.5,2.4388]
[1720568055152,3.55617686,3073.2,3071.5,2.4388]
[1720568055153,0.55,3072.9,3071.5,2.4388]
[1720568055502,0.55,3072.9,3071.0,3.25623]
[1720568055503,1.08822726,3073.1,3071.7,2.2801]
[1720568055666,0.3268,3073.0,3071.7,2.2801]
[1720568055992,0.55,3072.9,3071.8,0.25503631]
[1720568057247,0.8768,3072.9,3071.8,0.25503631]
[1720568057683,2.8327,3072.9,3071.7,2.2801]
[1720568057892,6.9772129,3072.8,3071.7,2.2801]
[1720568058054,4.52721553,3072.7,3071.7,2.2801]
[1720568058255,3.53825066,3072.6,3071.7,2.2801]
[1720568058455,1.08825066,3072.5,3071.7,2.2801]
[1720568058687,0.40882507,3072.4,3071.7,2.2801]
[1720568058857,0.55,3072.3,3071.7,2.2801]
[1720568059054,0.55,3072.5,3071.7,2.2801]
[1720568059254,0.55,3072.7,3071.7,2.2801]
[1720568059457,1.11236473,3072.7,3071.7,2.2801]
[1720568061376,0.05676574,3072.6,3071.7,2.2801]
[1720568062602,3.64844874,3073.1,3071.7,2.2801]
[1720568062753,0.53821876,3073.0,3071.7,2.2801]
[1720568062951,0.86501876,3073.3,3071.8,2.52401]
[1720568063776,0.55,3073.2,3071.8,2.52401]
[1720568064167,1.08821876,3073.2,3071.8,2.52401]
[1720568064368,0.53821876,3073.2,3071.8,2.52401]
[1720568064616,0.53821876,3073.2,3072.0,2.4488]
[1720568064829,3.0,3073.2,3072.0,2.4488]
[1720568065120,0.3268,3073.3,3072.0,2.4488]
[1720568066121,0.55,3073.2,3072.0,2.4488]
[1720568068212,0.8768,3073.2,3072.0,2.4488]
[1720568069223,0.8768,3073.2,3072.0,2.69368]
[1720568070088,0.55,3073.2,3072.0,2.69368]
[1720568072215,0.21531381,3073.5,3072.0,2.69368]
[1720568072216,0.96198616,3073.3,3072.0,2.69368]
[1720568072427,0.96198616,3073.3,3072.2,2.4488]
[1720568072428,0.55,3073.3,3072.2,2.4488]
[1720568072589,0.46875289,3073.5,3072.2,2.4488]
[1720568072928,0.05676673,3073.5,3072.2,2.4488]
[1720568077232,0.4120704,3073.9,3072.2,2.4488]
[1720568077447,0.55,3073.8,3072.4,2.4833]
[1720568078229,0.4120704,3074.2,3072.4,2.4833]
[1720568078230,0.55,3074.1,3072.4,2.4833]
[1720568078424,0.16297846,3074.0,3072.6,2.4833]
[1720568078633,0.55,3073.9,3072.6,2.4833]
[1720568080420,0.55,3074.1,3072.6,2.4833]
[1720568082325,0.96188271,3074.1,3072.6,2.4833]
[1720568082638,0.55,3074.1,3072.6,2.4833]
[1720568082794,0.46864199,3074.3,3072.8,2.4777]
[1720568082795,0.55,3074.2,3072.8,2.4777]
[1720568083432,8.4773,3074.1,3072.8,2.4777]
[1720568083604,3.41188271,3074.0,3072.8,2.4777]
[1720568083935,0.96188271,3073.9,3072.8,2.4777]
[1720568084238,0.39618827,3073.8,3072.8,2.4777]
[1720568084442,0.55,3073.7,3072.8,2.4777]
[1720568085036,0.96188271,3073.7,3072.8,2.4777]
[1720568085220,0.55,3073.7,3072.8,2.4777]
[1720568091305,0.4120058,3073.9,3072.8,2.4777]
[1720568091506,0.4120058,3073.9,3073.0,2.4413]
[1720568091941,0.7388058,3074.2,3073.0,2.4413]
[1720568092239,0.55,3074.1,3073.0,2.4413]
[1720568093050,6.545,3074.1,3073.0,2.4413]
[1720568093209,3.41195496,3074.0,3073.0,2.4413]
[1720568093414,1.95765046,3073.9,3073.0,2.4413]
[1720568093630,0.41195496,3073.8,3073.0,2.4413]
[1720568093835,0.55,3073.7,3073.0,2.4413]
[1720568094214,3.96195496,3073.7,3073.0,2.4413]
[1720568094442,0.41195496,3073.6,3073.0,2.4413]
[1720568094649,3.41195496,3073.6,3073.0,2.4413]
[1720568094858,0.41195496,3073.5,3073.0,2.4413]
[1720568095058,0.96195496,3073.7,3073.0,2.68543]
[1720568095260,0.96195496,3073.7,3073.0,2.4413]
[1720568095412,0.55,3073.7,3073.0,2.4413]
[1720568096156,0.96201102,3073.8,3073.0,2.4413]
[1720568096357,0.55,3073.8,3073.0,2.4413]
[1720568096529,0.96200303,3073.8,3073.0,2.4413]
[1720568096722,0.41200303,3073.9,3073.0,2.4413]
[1720568096930,3.73880303,3074.2,3073.0,2.4413]
[1720568097159,0.96200303,3074.1,3073.0,2.4413]
[1720568097310,0.4288803,3074.0,3073.0,2.68543]
[1720568097519,0.55,3073.9,3073.0,2.68543]
[1720568098313,0.55,3074.0,3073.0,2.68543]
[1720568098654,0.73880303,3074.2,3073.0,2.68543]
[1720568098655,0.55,3074.1,3073.0,2.68543]
[1720568098859,2.2714,3074.0,3073.0,2.4413]
[1720568099039,0.96200303,3073.9,3073.0,2.4413]
[1720568099362,0.55,3073.9,3073.0,2.4413]
[1720568099545,3.96201577,3073.9,3073.0,2.4413]
[1720568099743,0.41201577,3073.8,3073.0,2.4413]
[1720568099927,0.94620158,3073.7,3073.0,2.4413]
[1720568100941,0.55,3073.7,3073.0,2.4413]
[1720568101972,0.96204618,3073.8,3073.0,2.4413]
[1720568102270,0.55,3073.8,3073.0,2.4413]
[1720568102453,0.55,3073.9,3073.0,2.4413]
[1720568102788,5.7431,3073.8,3073.0,2.4413]
[1720568102982,0.41204618,3073.7,3073.0,2.4413]
[1720568103288,3.96204618,3073.7,3073.0,2.4413]
[1720568103438,0.41204618,3073.6,3073.0,2.4413]
[1720568103633,0.55,3073.5,3073.0,2.4413]
[1720568103832,0.55,3073.7,3073.0,2.4413]
[1720568104075,0.71523285,3073.7,3073.0,2.4413]
[1720568105239,0.55,3073.7,3073.0,2.4413]
[1720568105440,0.96198286,3073.8,3073.0,2.4413]
[1720568105677,0.55,3073.8,3073.0,2.4413]
[1720568106183,0.96202293,3073.8,3073.0,2.4413]
[1720568107285,1.13293113,3073.8,3073.0,2.4413]
[1720568107583,0.7209082,3073.8,3073.0,2.4413]
[1720568108790,4.13294791,3073.8,3073.0,2.4413]
[1720568108978,0.41203971,3073.7,3073.0,2.4413]
[1720568110662,3.41203971,3073.7,3073.0,2.4413]
[1720568110873,0.41203971,3073.6,3073.0,2.4413]
[1720568111074,0.7209082,3073.8,3073.0,2.4413]
[1720568111854,1.13294791,3073.8,3073.0,2.4413]
[1720568112060,0.41182368,3073.9,3073.0,2.4413]
[1720568112258,0.46860045,3074.0,3073.0,2.4413]
[1720568112482,0.55,3073.9,3073.0,2.4413]
[1720568112700,0.55,3073.9,3073.1,2.72323]
[1720568116535,0.05677677,3074.0,3073.1,2.72323]
[1720568116835,0.4117332,3074.3,3073.1,2.72323]
[1720568117042,0.57409536,3074.4,3073.1,2.72323]
[1720568117333,0.4117332,3074.4,3073.2,2.534323]
[1720568117892,0.55,3074.3,3073.2,2.534323]
[1720568121607,0.55,3074.4,3073.2,2.534323]
[1720568121805,0.55,3074.4,3073.3,2.5313323]
[1720568122820,0.34090368,3074.3,3073.3,2.5313323]
[1720568123024,0.55,3074.2,3073.3,2.5313323]
[1720568124725,0.55,3074.2,3073.4,2.4244]
[1720568124923,0.75242952,3074.3,3073.4,2.4244]
[1720568125093,3.75242952,3074.3,3073.6,2.4244]
[1720568125293,0.41152584,3074.2,3073.6,2.4244]
[1720568125506,0.34090368,3074.3,3073.6,2.4244]
[1720568125507,0.75242952,3074.3,3073.6,2.4244]
[1720568125807,1.063,3074.2,3073.6,2.4244]
[1720568126120,1.063,3074.2,3073.7,0.27984832]
[1720568126830,0.75251809,3074.3,3073.8,2.3978]
[1720568126998,0.34090368,3074.3,3073.8,2.3978]
[1720568137526,0.34090368,3074.3,3073.9,2.3846]
[1720568137736,0.34090368,3074.3,3074.1,2.3846]
[1720568141215,0.34090368,3074.3,3073.0,3.0]
[1720568141414,0.34090368,3074.3,3073.1,2.3005]
[1720568151159,0.34090368,3074.3,3073.1,3.254]
[1720568151364,0.34090368,3074.3,3073.4,2.4926]
[1720568151525,0.34090368,3074.3,3073.6,2.4926]
[1720568152874,0.75108195,3074.3,3073.6,2.4926]
[1720568153031,0.75112043,3074.3,3073.6,2.4926]
[1720568153230,0.34090368,3074.3,3073.6,2.4926]
[1720568160804,0.34090368,3074.3,3073.7,1.063]
[1720568160970,0.34090368,3074.3,3073.7,1.443486]
[1720568161384,0.34090368,3074.3,3073.7,0.380486]
[1720568164110,2.3628,3074.2,3073.5,1.31226]
[1720568164272,0.4102963,3074.1,3073.5,1.31226]
[1720568164673,0.34090368,3074.3,3073.5,1.31226]
[1720568165809,0.34090368,3074.3,3073.7,1.063]
[1720568169634,0.40978961,3074.4,3073.7,1.063]
[1720568170338,0.40978961,3074.4,3073.9,1.063]
[1720568170540,0.40978961,3074.4,3073.9,1.40207]
[1720568171138,3.40978961,3074.4,3073.9,1.40207]
[1720568171351,3.0,3074.7,3073.9,1.40207]
[1720568171352,0.40978961,3074.3,3073.9,1.40207]
[1720568171500,0.40978961,3074.6,3073.9,1.40207]
[1720568171701,0.05675458,3074.5,3073.9,1.40207]
[1720568173847,0.05675458,3074.5,3074.0,0.372977]
[1720568174606,0.05675458,3074.5,3073.5,2.3277]
[1720568174942,2.4006,3074.4,3073.5,3.3907]
[1720568175148,0.40980659,3074.3,3073.7,1.063]
[1720568175334,3.40980659,3074.3,3073.7,1.063]
[1720568175643,0.40980659,3074.2,3073.7,1.063]
[1720568176095,0.4098267,3074.3,3073.7,1.063]
[1720568176517,0.40973722,3074.3,3073.7,1.063]
[1720568177709,0.40973722,3074.3,3073.7,1.40207]
[1720568177906,0.40973722,3074.3,3073.5,1.063]
[1720568178306,2.2507,3074.2,3073.2,2.3622]
[1720568178510,0.40973722,3074.1,3073.3,1.063]
[1720568178711,3.40973722,3074.1,3073.3,1.063]
[1720568178925,3.40973722,3074.1,3072.9,7.1284]
[1720568178926,2.2507,3073.9,3072.9,2.3622]
[1720568179223,2.2507,3073.6,3072.5,1.063]
[1720568179525,2.2507,3073.3,3072.5,1.063]
[1720568179927,0.40992961,3073.2,3072.5,1.063]
[1720568180418,0.40992961,3073.2,3072.7,1.063]
[1720568180614,0.40992961,3073.2,3072.3,2.3622]
[1720568180811,0.40992961,3073.2,3072.4,0.23622]
[1720568182857,2.2507,3073.3,3072.4,0.23622]
[1720568185620,0.41015775,3073.2,3072.4,0.23622]
[1720568185830,2.2507,3073.3,3072.4,0.23622]
[1720568186135,0.41012584,3073.2,3072.4,0.23622]
[1720568186339,0.41011938,3073.2,3072.5,0.259842]
[1720568186546,0.41010789,3073.2,3072.5,0.259842]
[1720568186722,2.2507,3073.3,3072.5,0.259842]
[1720568187959,2.4382,3073.6,3072.5,0.259842]
[1720568188144,0.41047041,3073.5,3072.5,0.259842]
[1720568188360,3.41047041,3073.5,3072.5,0.259842]
[1720568188739,3.0,3073.5,3072.5,0.259842]
[1720568189065,2.4382,3073.6,3072.5,0.259842]
[1720568189365,0.4104665,3073.5,3072.5,0.259842]
[1720568189562,3.4104665,3073.5,3072.5,0.259842]
[1720568189772,3.0,3073.5,3072.5,0.259842]
[1720568190060,2.4382,3073.6,3072.6,2.4272]
[1720568190257,2.4382,3073.6,3072.7,0.2687042]
[1720568191379,5.4382,3073.8,3072.7,0.2687042]
[1720568191536,0.41063978,3073.7,3072.7,0.2687042]
[1720568192830,0.41068907,3073.7,3072.7,0.2687042]
[1720568193056,0.41068907,3073.7,3072.8,0.26959042]
[1720568193228,5.4382,3073.8,3072.8,0.26959042]
[1720568193657,0.41070326,3073.7,3072.8,0.26959042]
[1720568193960,5.4382,3073.8,3072.8,0.26959042]
[1720568194144,0.41079064,3073.7,3072.8,0.26959042]
[1720568194884,5.4382,3073.8,3072.8,0.26959042]
[1720568195262,2.4382,3073.8,3072.8,0.26959042]
[1720568195953,2.4024,3074.1,3072.9,2.4164]
[1720568196142,2.4024,3074.1,3073.1,2.4164]
[1720568196143,0.41077192,3074.0,3073.1,2.4164]
[1720568196341,2.4024,3074.1,3073.1,2.4164]
[1720568197666,0.41074406,3074.0,3073.1,2.4164]
[1720568197960,2.68371441,3073.9,3073.0,0.26859904]
[1720568198160,3.0,3073.8,3073.0,0.26859904]
[1720568198680,2.4024,3073.9,3073.0,0.26859904]
[1720568200385,2.4024,3074.3,3073.1,2.4164]
[1720568200558,0.65139934,3074.2,3073.1,2.6848999]
[1720568200875,0.65139934,3074.2,3073.3,1.063]
[1720568200876,3.41115934,3074.2,3073.3,1.063]
[1720568201184,0.41115934,3074.1,3073.3,1.063]
[1720568203178,3.0,3074.2,3073.3,1.063]
[1720568203364,0.41115421,3074.1,3073.3,1.063]
[1720568203544,3.41115421,3074.2,3073.3,1.063]
[1720568203748,0.41116451,3074.1,3073.3,1.43778999]
[1720568204346,0.41116451,3074.1,3073.1,3.4794]
[1720568207147,0.41142136,3074.1,3073.3,1.063]
[1720568207596,3.0,3074.2,3073.3,1.063]
[1720568207748,0.41147176,3074.1,3073.3,1.063]
[1720568208393,0.41146914,3074.1,3073.3,1.063]
[1720568209054,0.41146914,3074.1,3073.5,1.063]
[1720568209402,5.4113,3074.6,3073.7,1.063]
[1720568209569,0.41140834,3074.5,3073.8,2.4289]
[1720568209751,3.41140834,3074.5,3073.8,2.4289]
[1720568210099,0.99367917,3074.4,3073.8,2.4289]
[1720568210605,0.58227083,3074.4,3073.8,2.4289]
[1720568210888,0.99371834,3074.4,3073.8,2.4289]
[1720568213358,0.41144751,3074.4,3073.8,2.4289]
[1720568214013,3.0,3074.5,3073.8,2.4289]
[1720568214280,0.41161181,3074.4,3073.8,2.4289]
[1720568214482,3.41161181,3074.5,3073.8,2.4289]
[1720568214815,3.41161181,3074.4,3073.8,2.4289]
[1720568215023,0.41161181,3074.3,3073.8,2.4289]
[1720568215318,3.41161181,3074.5,3073.8,2.4289]
[1720568215504,0.41161181,3074.4,3073.8,2.4289]
[1720568216717,1.47461181,3074.7,3073.8,2.4289]
[1720568217214,1.93836367,3074.7,3073.8,2.4289]
[1720568217424,0.41161181,3074.6,3073.8,2.4289]
[1720568217603,0.41161874,3074.6,3073.8,2.4289]
[1720568218000,0.41191713,3074.6,3073.8,2.4289]
[1720568218687,1.52675186,3074.7,3073.8,2.4289]
[1720568218927,0.4119118,3074.6,3073.8,2.4289]
[1720568219079,0.4119118,3074.6,3073.8,2.77809]
[1720568219987,2.2581,3074.5,3073.8,2.4289]
[1720568220194,5.2581,3074.5,3073.8,2.4289]
[1720568220518,0.4120976,3074.4,3073.5,2.3531]
[1720568220823,3.41267705,3074.4,3073.6,0.23531]
[1720568220984,0.41267705,3074.3,3073.4,1.063]
[1720568223224,1.063,3074.0,3072.9,1.063]
[1720568223432,1.063,3073.8,3072.9,1.063]
[1720568223923,1.47604333,3073.8,3072.9,1.063]
[1720568224095,2.82794333,3073.7,3072.8,2.2771]
[1720568224300,3.41304333,3073.6,3072.8,2.2771]
[1720568224625,0.41304333,3073.5,3072.9,1.063]
[1720568225386,0.41304333,3073.5,3073.1,1.063]
[1720568225832,0.41304333,3073.8,3073.1,1.063]
[1720568226025,0.34130433,3073.7,3073.1,1.063]
[1720568227634,0.41309327,3073.8,3073.3,3.418]
[1720568228240,0.41301809,3073.8,3073.3,3.418]
[1720568229348,0.41301809,3073.8,3073.5,1.063]
[1720568229723,0.41301809,3074.1,3073.5,1.063]
[1720568229926,0.41301809,3074.1,3073.3,2.355]
[1720568229927,1.03683313,3074.1,3073.3,3.418]
[1720568230119,0.62381504,3074.1,3073.3,2.355]
[1720568230323,1.03674938,3074.1,3073.3,2.355]
[1720568230627,0.50997494,3074.0,3073.1,1.063]
[1720568230830,2.3193,3073.9,3073.1,1.063]
[1720568231032,0.41293434,3073.8,3073.1,1.063]
[1720568231437,3.41293434,3073.8,3073.1,1.063]
[1720568231728,1.28615777,3073.7,3072.9,1.063]
[1720568231933,0.41293434,3073.7,3072.9,1.063]
[1720568232845,0.41293434,3073.7,3073.1,1.063]
[1720568233048,0.41293434,3073.7,3073.1,3.3995]
[1720568233209,3.41293434,3074.0,3073.1,3.3995]
[1720568233551,3.0,3074.0,3073.1,3.3995]
[1720568233739,0.41290529,3073.9,3073.1,3.3995]
[1720568234747,3.0,3074.0,3073.1,3.3995]
[1720568234916,0.41280434,3073.9,3073.1,3.3995]
[1720568236256,0.41280434,3073.9,3072.8,2.3365]
[1720568236433,1.08930477,3073.9,3072.9,1.063]
[1720568236955,0.67650043,3073.9,3073.1,1.063]
[1720568237159,1.08955521,3073.9,3073.1,1.063]
[1720568237525,1.08956534,3073.9,3073.1,1.063]
[1720568237720,0.40895653,3073.8,3073.1,1.063]
[1720568240363,1.08956553,3073.9,3073.1,1.063]
[1720568240543,0.41295133,3073.9,3073.1,3.3284]
[1720568244042,3.0,3074.0,3073.1,2.2654]
[1720568244259,0.41298693,3073.9,3073.4,1.063]
[1720568244468,3.41298693,3074.0,3073.4,1.063]
[1720568244633,3.41298693,3073.9,3073.4,1.063]
[1720568244834,0.41298693,3073.8,3073.4,1.063]
[1720568245071,0.41298693,3074.1,3073.4,1.063]
[1720568245239,3.41298693,3074.2,3073.4,1.063]
[1720568245451,0.41298693,3074.1,3073.4,1.063]
[1720568245630,0.41298693,3074.1,3073.5,2.4162]
[1720568245836,0.41298693,3074.1,3073.5,2.76412]
[1720568246138,2.2673,3074.3,3073.6,1.063]
[1720568246352,3.3247,3074.6,3073.6,1.063]
[1720568246549,2.2617,3074.6,3073.7,0.382712]
[1720568247075,0.41272071,3074.5,3073.7,0.382712]
[1720568249170,3.41272071,3074.5,3073.7,0.382712]
[1720568249783,3.41272071,3074.5,3073.6,1.063]
[1720568250779,3.0,3074.5,3073.6,1.063]
[1720568251077,3.0,3074.6,3074.2,2.2892]
[1720568251295,3.0,3074.8,3074.3,0.33522]
[1720568251448,3.0,3074.8,3074.3,1.063]
[1720568251650,5.4118,3075.3,3074.3,1.063]
[1720568251867,5.4118,3075.3,3074.2,2.2892]
[1720568251868,1.063,3075.2,3074.2,2.2892]
[1720568252076,0.64748,3075.1,3074.2,2.2892]
[1720568253983,0.64748,3075.1,3074.3,1.063]
[1720568254787,0.64748,3075.1,3074.2,2.2892]
[1720568256451,3.0,3075.2,3074.2,2.2892]
[1720568259906,1.11971667,3075.4,3074.3,1.063]
[1720568260101,0.55,3075.3,3074.3,1.063]
[1720568260316,0.05671667,3075.4,3073.8,3.25323]
[1720568260494,3.94535357,3075.7,3075.3,1.063]
[1720568260669,3.94535357,3075.7,3075.6,1.063]
[1720568262690,3.94535357,3075.7,3075.2,2.547]
[1720568262891,3.94535357,3075.7,3075.3,0.811091]
[1720568263701,0.1135209,3076.4,3075.3,0.811091]
[1720568265896,0.1135209,3076.4,3075.4,2.4076]
[1720568266077,0.1135209,3076.4,3075.6,2.547]
[1720568267810,0.1135209,3076.4,3075.4,2.4076]
[1720568268012,0.1135209,3076.4,3075.5,0.3218691]
[1720568268879,0.1135209,3076.4,3075.6,5.79834]
[1720568269123,0.1135209,3076.4,3075.7,2.4271]
[1720568269300,0.1135209,3076.4,3076.0,2.547]
[1720568269501,0.1135209,3076.4,3076.1,2.4271]
[1720568275934,0.1135209,3076.4,3076.0,2.547]
[1720568276147,0.1135209,3076.4,3075.6,2.547]
[1720568280939,2.5664209,3076.4,3075.5,0.32516]
[1720568281105,3.0,3076.3,3075.2,2.547]
[1720568282146,2.4061,3076.2,3074.5,2.4242]
[1720568282357,2.4061,3076.0,3074.2,2.547]
[1720568282509,0.55,3075.9,3074.2,2.547]
[1720568282703,3.55,3075.9,3074.2,2.547]
[1720568282904,0.93901,3075.8,3074.3,0.49712]
[1720568283143,0.55,3075.7,3074.3,0.49712]
[1720568283698,2.4263,3075.6,3074.3,0.49712]
[1720568283929,0.55,3075.5,3074.2,2.547]
[1720568284126,3.55,3075.5,3074.2,2.547]
[1720568284403,5.8603,3075.4,3073.3,2.547]
[1720568284597,5.8603,3075.4,3073.4,0.48836]
[1720568284598,2.7813,3075.4,3073.4,0.48836]
[1720568284833,3.8768,3075.3,3073.4,0.48836]
[1720568285540,3.55,3075.3,3073.4,0.48836]
[1720568285746,0.63313,3075.2,3073.7,2.547]
[1720568285915,3.55,3075.3,3073.7,2.547]
[1720568286120,3.0,3075.3,3073.7,2.547]
[1720568286846,3.0,3075.3,3074.1,2.547]
[1720568290416,3.0,3075.3,3073.7,2.547]
[1720568291231,2.4744,3075.2,3073.7,2.547]
[1720568291426,1.09744,3075.1,3073.8,0.2547]
[1720568291833,1.15415937,3075.1,3073.8,0.2547]
[1720568292734,4.15415937,3075.1,3073.8,0.2547]
[1720568292931,4.48095937,3075.1,3073.8,0.2547]
[1720568294530,4.15415937,3075.1,3073.8,0.2547]
[1720568294860,0.66285594,3075.0,3073.9,0.28017]
[1720568295724,3.05671937,3075.1,3073.9,0.28017]
[1720568296171,3.0,3075.1,3073.9,0.28017]
[1720568296375,2.4744,3075.2,3073.9,0.28017]
[1720568300872,3.0,3075.3,3073.9,0.28017]
[1720568301038,3.0,3075.5,3074.0,0.261517]
[1720568301239,0.55,3075.4,3074.0,0.261517]
[1720568303341,0.8763,3075.4,3074.0,0.261517]
[1720568304840,0.55,3075.4,3074.0,0.261517]
[1720568305176,1.13275,3075.4,3074.0,0.261517]
[1720568307170,1.13275,3075.4,3074.1,2.3237]
[1720568310355,0.55,3075.4,3074.1,4.8707]
[1720568314570,3.0,3075.5,3074.2,2.4823]
[1720568314776,2.2775,3075.6,3074.2,2.4823]
[1720568315463,3.39738279,3075.8,3074.2,2.4823]
[1720568315791,1.28721315,3075.7,3074.4,2.4823]
[1720568316287,0.39738279,3075.8,3074.4,2.4823]
[1720568316494,0.05670411,3075.8,3074.7,2.4823]